[Event "FRA-ch Teams Top 16-Haute 2022"]
[Site "Chartres"]
[Date "2022.06.17"]
[Round "9.27"]
[White "Van Foreest, Jorden"]
[Black "Medvegy, Zoltan"]
[Result "1-0"]
[ECO "C10"]
[WhiteElo "2715"]
[BlackElo "2522"]
[Annotator "TA"]
[PlyCount "79"]
[EventDate "2022.06.16"]
[EventType "team-tourn"]
[EventCountry "FRA"]
[SourceTitle "playchess.com"]
[Source "ChessBase"]
[SourceQuality "1"]
[TimeControl "40/5400+30:1800+30"]

{[%evp 13,79,55,52,53,57,24,47,41,52,55,58,50,49,60,74,43,43,45,47,48,106,106,106,102,100,97,100,95,144,142,136,88,127,104,114,97,175,182,184,184,171,164,175,170,227,222,217,201,275,252,308,306,270,253,289,247,352,324,568,583,574,572,653,637,587,586,578,570]} 1. e4 {[%emt 0:00:04]} e6 {[%emt 0:00:08]} 2. d4 {[%emt 0:00:09]} d5 {[%emt 0:00:04]} 3. Nc3 {[%emt 0:00:23]} dxe4 {[%emt 0:00:06]} 4. Nxe4 {[%emt 0:00:09]} Bd7 {[%emt 0:00:06]} 5. Nf3 {[%emt 0:00:49]} Bc6 {[%emt 0:00:06]} 6. Bd3 {[%emt 0:00:26]} Nd7 {[%emt 0:00:09]} 7. c3 {[%emt 0:01:03]} Ngf6 {[%emt 0:00:28]} 8. Nxf6+ {[%emt 0:00:41] C10: French with 3 Nc3: Unusual Black 3rd moves and 3...dxe4.} Nxf6 {[%emt 0:00:06] [#]} 9. h4 $146 {[%emt 0:00:18]} ({Predecessor:} 9. O-O Bd6 10. Re1 Bxf3 11. Qxf3 c6 12. a4 a5 13. g3 O-O 14. h4 Re8 15. Kg2 Qc7 16. Bg5 Nd5 17. Re2 {½-½ (63) Santos Ruiz,M (2586)-Andreikin,D (2729) Chess.com INT 2022}) 9... Bxf3 {[%emt 0:05:43]} 10. Qxf3 {[%emt 0:00:10] White is slightly better.} Qd5 {[%emt 0:00:11]} 11. Qxd5 {[%emt 0:00:12]} (11. Be2 {is more complex.} Bd6 12. Bg5 c6 13. g3) 11... exd5 {[%emt 0:12:00]} 12. h5 {[%emt 0:00:08]} Bd6 {[%emt 0:13:01]} 13. f3 {[%emt 0:04:26]} Bg3+ {[%emt 0:08:50]} 14. Kd1 {[%emt 0:00:48]} O-O {[%emt 0:02:58]} 15. Rh3 {[%emt 0:01:44]} Bd6 {[%emt 0:00:09]} 16. g4 {[%emt 0:00:29]} h6 {[%emt 0:03:00] [#]} (16... Rfe8 $14) 17. g5 $1 $16 {[%emt 0:02:58]} hxg5 {[%emt 0:02:47]} 18. Bxg5 {[%emt 0:00:25] h6 is the strong threat.} Nh7 {[%emt 0:02:04]} 19. Bd2 {[%emt 0:01:00] White is more active.} Rfe8 {[%emt 0:12:54]} 20. Kc2 {[%emt 0:00:17]} Re6 {[%emt 0:00:41]} (20... Kh8 $142) 21. Rg1 {[%emt 0:00:48]} Kh8 {[%emt 0:26:04]} 22. Rg2 {[%emt 0:09:46]} ({White should try} 22. f4) 22... Nf6 {[%emt 0:02:15]} 23. Bf5 {[%emt 0:01:31]} Ree8 {[%emt 0:00:36]} 24. Rh1 {[%emt 0:00:21]} Ng8 {[%emt 0:03:03] [#]} (24... a6 $16) 25. Rhg1 $1 $40 {[%emt 0:00:48][%mdl 128] White attacks with force.} Ne7 {[%emt 0:01:47]} 26. Bd3 {[%emt 0:03:05]} Rg8 {[%emt 0:00:12]} 27. Bg5 {[%emt 0:02:23]} f6 {[%emt 0:00:29]} 28. Bh4 {[%emt 0:02:09][%cal Og2g7] Hoping for Rxg7!} Bf4 {[%emt 0:03:23]} (28... Raf8 $142 29. Re1 Rf7) 29. Re2 {[%emt 0:00:51]} Nc6 {[%emt 0:01:04]} 30. Bg6 {[%emt 0:01:01] Against Rae8} Rgd8 {[%emt 0:00:28]} 31. b4 {[%emt 0:01:45]} a6 {[%emt 0:00:15]} 32. a4 {[%emt 0:01:09]} Kg8 {[%emt 0:00:13]} 33. Rge1 {[%emt 0:01:48]} Kf8 {[%emt 0:00:16]} 34. h6 {[%emt 0:00:04]} Bxh6 {[%emt 0:00:25]} (34... gxh6 {was called for.} 35. Bxf6 Bg3) 35. Bg3 {[%emt 0:00:03]} f5 $2 {[%emt 0:01:28]} (35... Rac8 {was necessary.} 36. Bf5 Ra8 37. Bxc7 Nxd4+ 38. cxd4 Rdc8) 36. Bxc7 {[%emt 0:00:21] White is clearly winning.} Rdc8 {[%emt 0:00:16] [#]} 37. Kd3 $1 {[%emt 0:00:20]} Bg5 {[%emt 0:00:23]} (37... f4 38. Bd6+) 38. Bd6+ {[%emt 0:01:20]} Kg8 {[%emt 0:00:01]} 39. Bxf5 {[%emt 0:01:06] A strong pair of Bishops.} Rd8 {[%emt 0:00:12]} 40. Bc7 {[%emt 0:00:10] Weighted Error Value: White=0.08 (flawless) /Black=0.31} 1-0

[Event "FRA-ch Teams Top 16-Haute 2022"]
[Site "Chartres"]
[Date "2022.06.17"]
[Round "9.28"]
[White "Tiviakov, Sergei"]
[Black "Amin, Bassem"]
[Result "1/2-1/2"]
[ECO "C85"]
[WhiteElo "2567"]
[BlackElo "2686"]
[Annotator "TA"]
[PlyCount "29"]
[EventDate "2022.06.16"]
[EventType "team-tourn"]
[EventCountry "FRA"]
[SourceTitle "playchess.com"]
[Source "ChessBase"]
[SourceQuality "1"]
[TimeControl "40/5400+30:1800+30"]

{[%evp 13,29,6,10,0,0,0,0,-20,23,15,0,4,0,2,0,0,0,0]} 1. e4 {[%emt 0:00:02]} e5 {[%emt 0:02:11]} 2. Nf3 {[%emt 0:00:06]} Nc6 {[%emt 0:00:05]} 3. Bb5 {[%emt 0:00:07]} a6 {[%emt 0:00:31]} 4. Ba4 {[%emt 0:00:06]} Nf6 {[%emt 0:00:05]} 5. O-O {[%emt 0:00:07]} Be7 {[%emt 0:00:55]} 6. Bxc6 {[%emt 0:00:06]} dxc6 {[%emt 0:00:09]} 7. Qe2 {[%emt 0:00:05]} Nd7 {[%emt 0:08:02]} 8. d4 {[%emt 0:00:12] C85: Closed Ruy Lopez: Deferred Exchange Variation.} exd4 {[%emt 0:01:28]} 9. Nxd4 {[%emt 0:00:07]} O-O {[%emt 0:02:07]} 10. Nc3 {[%emt 0:01:44]} Bf6 {[%emt 0:04:47]} 11. Rd1 {[%emt 0:04:28] [#]} Re8 $146 {[%emt 0:02:33] The position is equal.} ({Predecessor:} 11... Qe8 12. f4 c5 13. Nf3 Bxc3 14. bxc3 b6 15. c4 Bb7 16. Bb2 Rd8 17. e5 Qe6 {½-½ (32) Taghizadeh,R (2351)-Miyasaka,M (2197) New York 2017}) 12. Bf4 {[%emt 0:17:56]} Qe7 {[%emt 0:10:40]} 13. Bxc7 {[%emt 0:22:31] [#] Black must now prevent Nf5.} Nc5 {[%emt 0:01:32][%csl LRc7,LRe4]} 14. Bb6 {[%emt 0:01:10]} Nxe4 {[%emt 0:01:45]} 15. Nxe4 {[%emt 0:00:33] Not much happened in this game.  Weighted Error Value: White=0.06 (flawless) /Black=0.05 (flawless)} 1/2-1/2

[Event "FRA-ch Teams Top 16-Haute 2022"]
[Site "Chartres"]
[Date "2022.06.17"]
[Round "9.29"]
[White "Tregubov, Pavel V."]
[Black "Lagarde, Maxime"]
[Result "0-1"]
[ECO "C84"]
[WhiteElo "2541"]
[BlackElo "2628"]
[Annotator "TA"]
[PlyCount "70"]
[EventDate "2022.06.16"]
[EventType "team-tourn"]
[EventCountry "FRA"]
[SourceTitle "playchess.com"]
[Source "ChessBase"]
[SourceQuality "1"]
[TimeControl "40/5400+30:1800+30"]

{[%evp 13,70,17,15,0,0,4,10,0,9,5,9,9,0,0,2,-8,-6,-20,-26,-35,-6,-45,-35,-41,-52,-58,-37,-35,-47,-37,-9,-56,-43,-42,-33,-41,-10,-35,-46,-21,-6,-29,-27,-33,-21,-48,-39,-122,-122,-200,-190,-470,-499,-470,-469,-497,-491,-5638,-4961]} 1. e4 {[%emt 0:01:13]} e5 {[%emt 0:00:37]} 2. Nf3 {[%emt 0:00:09]} Nc6 {[%emt 0:00:03]} 3. Bb5 {[%emt 0:00:28][%cal Bf1b5,Bb5a4,Ba4b3,Bb3a2][%mdl 32]} a6 {[%emt 0:00:12]} 4. Ba4 {[%emt 0:00:09]} Nf6 {[%emt 0:00:05]} 5. O-O {[%emt 0:00:34]} Be7 {[%emt 0:00:09]} 6. d3 {[%emt 0:00:24]} b5 {[%emt 0:00:33]} 7. Bb3 {[%emt 0:00:07]} d6 {[%emt 0:00:05]} 8. a3 {[%emt 0:00:25] C84: Closed Ruy Lopez: Unusual White 6th moves.} Na5 {[%emt 0:01:11]} 9. Ba2 {[%emt 0:01:01]} c5 {[%emt 0:00:04]} 10. Nc3 {[%emt 0:03:45] The position is equal.} Be6 {[%emt 0:04:42]} 11. Nd5 {[%emt 0:02:54]} Nxd5 {[%emt 0:02:45]} 12. Bxd5 {[%emt 0:01:41]} Bxd5 {[%emt 0:02:21]} 13. exd5 {[%emt 0:00:05]} O-O {[%emt 0:00:48]} 14. b4 {[%emt 0:00:33]} Nb7 {[%emt 0:00:05]} 15. Re1 {[%emt 0:08:13]} Qd7 {[%emt 0:00:55] [#]} 16. Be3 $146 {[%emt 0:09:46]} ({Predecessor:} 16. c3 Rfc8 17. Bb2 f5 18. Qb3 Bf6 19. h3 a5 20. Rad1 Qf7 21. Nd2 Bg5 22. Nf3 {0-1 (53) Sanal,V (2510)-Dudukovic,N (2385) Veliko Gradiste 2018}) 16... Rac8 {[%emt 0:08:16]} 17. bxc5 {[%emt 0:16:33]} Nxc5 {[%emt 0:00:40]} 18. d4 {[%emt 0:00:15]} exd4 {[%emt 0:06:36]} 19. Bxd4 {[%emt 0:01:50]} Rfe8 {[%emt 0:00:57]} 20. Rc1 {[%emt 0:02:05]} Qf5 {[%emt 0:08:04]} 21. Bxc5 {[%emt 0:07:32]} dxc5 {[%emt 0:12:47]} 22. c4 {[%emt 0:02:03]} (22. Re5 $11 Qd7 23. c4) 22... Bd6 {[%emt 0:07:01]} (22... Bf8 $5 {[%cal Rb5c4]}) 23. Qb3 {[%emt 0:01:45]} Rxe1+ {[%emt 0:02:26]} 24. Rxe1 {[%emt 0:00:15]} h6 {[%emt 0:01:38][%cal Bh7h6,Bh6h5][%mdl 32]} 25. Nh4 {[%emt 0:09:37][%cal Bf3h4,Bh4g2,Bg2e3][%mdl 32]} Qg4 {[%emt 0:07:23][%csl LRc4,LRh4]} 26. g3 {[%emt 0:00:50]} g6 {[%emt 0:00:24]} 27. Ng2 {[%emt 0:03:37]} ({But not} 27. cxb5 c4 28. Qc3 axb5 $17) 27... Rb8 {[%emt 0:13:57]} ({Much less strong is} 27... bxc4 28. Qa4 $14) 28. Ne3 {[%emt 0:04:13]} Qf3 {[%emt 0:00:12]} 29. Qc2 {[%emt 0:04:24]} h5 {[%emt 0:01:18][%cal Oh5h4]} 30. a4 {[%emt 0:15:48] [#]} (30. cxb5 $15 axb5 31. a4) 30... b4 $1 $17 {[%emt 0:02:56] Black is more active.} 31. Rb1 {[%emt 0:00:22]} (31. Qd1 $17 Qxd1 32. Nxd1) 31... Re8 $19 {[%emt 0:01:56][%cal Oh5h4]} 32. Qd1 $2 {[%emt 0:02:42]} (32. Rc1) 32... Rxe3 {[%emt 0:00:27] Black is clearly winning.} 33. fxe3 {[%emt 0:00:06]} Qxe3+ {[%emt 0:00:02]} 34. Kg2 {[%emt 0:01:00]} Qe4+ {[%emt 0:00:06]} 35. Kh3 {[%emt 0:00:57]} (35. Kf1 $142 Qh1+ 36. Ke2 Qxh2+ 37. Kf1) 35... g5 {[%emt 0:01:16] Weighted Error Value: White=0.61/Black=0.04 (flawless)} 0-1

[Event "FRA-ch Teams Top 16-Haute 2022"]
[Site "Chartres"]
[Date "2022.06.17"]
[Round "9.30"]
[White "Guliyev, Namig"]
[Black "Hamdouchi, Hicham"]
[Result "1/2-1/2"]
[ECO "B45"]
[WhiteElo "2547"]
[BlackElo "2536"]
[Annotator "TA"]
[PlyCount "104"]
[EventDate "2022.06.16"]
[EventType "team-tourn"]
[EventCountry "FRA"]
[SourceTitle "playchess.com"]
[Source "ChessBase"]
[SourceQuality "1"]
[TimeControl "40/5400+30:1800+30"]

{[%evp 12,104,43,40,30,44,44,38,37,31,52,27,38,29,21,0,15,-23,0,-2,-15,-18,-18,-20,-20,-22,-25,-32,-14,-30,-18,-20,0,0,0,0,28,28,23,27,28,36,41,0,40,39,38,23,89,48,39,31,50,27,23,28,35,0,0,0,0,0,0,0,0,0,0,0,0,0,0,0,0,0,0,0,0,0,0,0,0,0,0,0,0,0,0,0,0,0,0,0,0,0,0]} 1. e4 {[%emt 0:02:28]} c5 {[%emt 0:00:06]} 2. Nf3 {[%emt 0:00:06]} e6 {[%emt 0:00:07]} 3. d4 {[%emt 0:00:05]} cxd4 {[%emt 0:00:04]} 4. Nxd4 {[%emt 0:00:05]} Nf6 {[%emt 0:00:05]} 5. Nc3 {[%emt 0:00:10]} Nc6 {[%emt 0:00:07]} 6. Ndb5 {[%emt 0:00:39]} Bc5 {[%emt 0:00:19]} 7. Bf4 {[%emt 0:00:11]} O-O {[%emt 0:00:19] B45: Sicilian Four Knights.} 8. Bc7 {[%emt 0:00:23]} Qe7 {[%emt 0:00:07] [#] aiming for ...d5.} 9. Bd6 $1 {[%emt 0:00:05]} Bxd6 {[%emt 0:00:05] White is slightly better.} 10. Qxd6 {[%emt 0:00:08]} Qd8 {[%emt 0:00:06]} 11. O-O-O {[%emt 0:07:24]} a6 {[%emt 0:00:38]} 12. Nd4 {[%emt 0:18:09]} Ne7 {[%emt 0:00:42][%cal Bc6e7,Be7c8,Bc8b6,Bb6d5][%mdl 32]} 13. Be2 {[%emt 0:11:33]} b5 {[%emt 0:03:49] [#]} 14. f4 $146 {[%emt 0:05:50]} ({Predecessor:} 14. Nb3 Bb7 15. f3 Bc6 16. h4 Ne8 17. Qd4 Rb8 18. h5 b4 19. Nb1 a5 20. h6 {½-½ (52) Smirin,I (2612)-Fedorov,A (2529) Chess.com INT 2020}) 14... Bb7 {[%emt 0:07:32]} 15. Bf3 {[%emt 0:00:19]} Nc8 {[%emt 0:05:28]} 16. Qb4 {[%emt 0:02:47]} Nb6 {[%emt 0:06:25]} 17. e5 {[%emt 0:00:18]} Bxf3 {[%emt 0:04:17]} 18. Nxf3 {[%emt 0:01:04]} Nfd5 {[%emt 0:00:30]} 19. Nxd5 {[%emt 0:00:19]} Nxd5 {[%emt 0:00:05]} 20. Qe4 {[%emt 0:01:00]} Rc8 {[%emt 0:04:13]} (20... a5 {looks sharper.} 21. Ng5 g6 22. Rxd5 exd5 23. Qxd5 Qb6) 21. Rd4 {[%emt 0:08:16]} f5 {[%emt 0:11:56]} 22. exf6 {[%emt 0:02:15]} Qxf6 {[%emt 0:01:37]} 23. g3 {[%emt 0:01:03]} Qf5 {[%emt 0:01:09]} 24. Qxf5 {[%emt 0:01:06]} Rxf5 {[%emt 0:00:08]} 25. Re1 {[%emt 0:00:08]} h6 {[%emt 0:02:54]} 26. h4 {[%emt 0:01:47]} Rc7 {[%emt 0:02:52]} 27. Kd2 {[%emt 0:01:22]} Rf8 {[%emt 0:04:02]} 28. c3 {[%emt 0:02:23]} Ne7 {[%emt 0:03:36]} 29. Rd3 {[%emt 0:02:40]} Nf5 {[%emt 0:03:28]} (29... Rf5 $11) 30. Ne5 {[%emt 0:00:44]} d5 {[%emt 0:06:56]} 31. Ng6 {[%emt 0:05:07][%csl LRe6,LRf8]} Re8 {[%emt 0:00:48]} 32. g4 {[%emt 0:03:55]} Nd6 {[%emt 0:02:29]} 33. h5 {[%emt 0:00:16]} Kf7 {[%emt 0:06:41]} 34. Ke2 {[%emt 0:05:02]} Nc4 {[%emt 0:06:27] The position is equal.} 35. b3 {[%emt 0:01:11]} Nd6 {[%emt 0:00:06]} 36. Kf3 {[%emt 0:02:02]} Rec8 {[%emt 0:03:25]} 37. Ree3 {[%emt 0:00:35]} Ne4 {[%emt 0:03:36][%cal Rc7c3]} 38. c4 {[%emt 0:00:57]} bxc4 {[%emt 0:00:32]} 39. bxc4 {[%emt 0:00:08]} dxc4 {[%emt 0:01:08]} 40. Rd4 {[%emt 0:01:03]} Nf6 {[%emt 0:04:42] [#] ...c3 is the strong threat.} 41. Ne5+ {[%emt 0:30:50]} Ke7 {[%emt 0:31:18]} 42. Ng6+ {[%emt 0:00:48]} Kf7 {[%emt 0:00:08]} 43. Ne5+ {[%emt 0:00:53]} Ke7 {[%emt 0:00:05] White must now prevent ...c3.} 44. Rc3 {[%emt 0:04:33][%cal Rc3c4]} Nd7 {[%emt 0:04:18]} 45. Nxd7 {[%emt 0:02:59]} ({But not} 45. Nxc4 $2 Nb6 46. Nxb6 Rxc3+ 47. Ke4 R8c6 48. Rd7+ Ke8 $19) 45... Rxd7 {[%emt 0:01:03]} 46. Rdxc4 {[%emt 0:00:11]} Rxc4 {[%emt 0:01:15]} 47. Rxc4 $11 {[%emt 0:00:26][%mdl 4096] Endgame KR-KR} Rd3+ {[%emt 0:00:00]} 48. Ke4 {[%emt 0:00:00]} Ra3 {[%emt 0:00:00]} 49. Rc7+ {[%emt 0:00:00]} Kf6 {[%emt 0:00:00]} 50. Rc6 {[%emt 0:00:00]} Ra4+ {[%emt 0:00:00]} 51. Kf3 {[%emt 0:00:00]} Ra3+ {[%emt 0:00:00]} 52. Ke4 {[%emt 0:00:00]} Ra4+ {[%emt 0:00:00] Weighted Error Value: White=0.05 (flawless) /Black=0.06 (flawless)} 1/2-1/2

[Event "FRA-ch Teams Top 16-Haute 2022"]
[Site "Chartres"]
[Date "2022.06.17"]
[Round "9.31"]
[White "Libiszewski, Fabien"]
[Black "Maurizzi, Marc`Andria"]
[Result "1/2-1/2"]
[ECO "B45"]
[WhiteElo "2514"]
[BlackElo "2490"]
[Annotator "RC"]
[PlyCount "36"]
[EventDate "2022.06.16"]
[EventType "team-tourn"]
[EventCountry "FRA"]
[SourceTitle "playchess.com"]
[Source "ChessBase"]
[SourceQuality "1"]
[TimeControl "40/5400+30:1800+30"]

1. e4 {[%emt 0:00:03]} c5 {[%emt 0:00:49]} 2. Nf3 {[%emt 0:00:19]} e6 {[%emt 0:00:02]} 3. d4 {[%emt 0:01:06]} cxd4 {[%emt 0:00:38]} 4. Nxd4 {[%emt 0:00:05]} Nf6 {[%emt 0:00:04]} 5. Nc3 {[%emt 0:00:10]} Nc6 {[%emt 0:00:03]} 6. g3 {[%emt 0:01:06]} Bb4 {[%emt 0:00:25]} 7. Bg2 {[%emt 0:00:31]} O-O {[%emt 0:00:07]} 8. O-O {[%emt 0:01:07]} d6 {[%emt 0:00:02]} 9. Nde2 {[%emt 0:17:47]} a6 {[%emt 0:10:38]} 10. b3 {[%emt 0:02:39]} Bc5 {[%emt 0:31:09]} 11. Na4 {[%emt 0:09:23]} Ba7 {[%emt 0:02:35]} 12. c4 {[%emt 0:06:09]} e5 {[%emt 0:04:59]} 13. Nac3 {[%emt 0:00:21]} Bg4 {[%emt 0:02:16]} 14. Kh1 {[%emt 0:08:44]} Bxe2 {[%emt 0:04:01]} 15. Qxe2 {[%emt 0:00:52]} Nd4 {[%emt 0:00:05]} 16. Qd3 {[%emt 0:02:56]} Nd7 {[%emt 0:03:23]} 17. Be3 {[%emt 0:02:49]} Nc5 {[%emt 0:07:15]} 18. Qd2 {[%emt 0:01:09]} a5 {[%emt 0:06:11]} 1/2-1/2